{"text_format":"1","workbook":"xlsx","n_sheets":5,"sheets":["Лист1","Лист5","Лист2","Лист3","Лист4"],"not_rendered":{"charts":0,"images":0,"macros":1,"external_links":0,"defined_names":0,"comments":0,"pivot_tables":0},"unopened":[],"bounds":{"document_bytes":16777216,"sheet_cells":100000,"rows_first":2000,"rows_last":500,"rows_between":2000,"halvings":0,"cell_chars":16384,"cell_head_chars":4096},"cells_cut":0,"cells_raw":0,"read":"whole","date_system":"1900"}

{"sheet":"Лист1","index":0,"n_rows":26,"n_cols":15,"rows_kept":26,"cut":false,"hidden":false,"merged":[]}
[]
[]
[]
[]
[]
[]
[null,null,null,null,{"$f":"Лист2!$D$13","v":4},null,null,{"$f":"Лист3!$C$31","v":2.5},null,null,{"$f":"Лист4!$C$31","v":9}]
[]
[]
[]
[]
[null,null,null,"Как написать макрос, чтоб быстро крутиться счетчика? При условии только на этом листе, и не коснулись на других листаХ( В других листах имеется вставки со макросами)."]
[]
[null,null,null,"Имеется файл весит 15 Мб, при прокрутке счетчика медлит и тормозит."]
[]
[]
[]
[]
[]
[]
[]
[]
[]
[]
[]
[null,null,null,null,null,null,null,null,null,null,null,null,null,"Не тот макрос:","  Private Sub Worksheet_SelectionChange(ByVal Target As Range)\n    With ActiveWindow\n        .ScrollRow = Target.Row\n        .ScrollColumn = Target.Column\n    End With\nEnd Sub"]

{"sheet":"Лист5","index":1,"n_rows":80,"n_cols":29,"rows_kept":80,"cut":false,"hidden":false,"merged":[]}
[]
[]
[-6,-5,-4,-3,-2,-1,0,1,2,3,4,5,6,7,8,9,10,11,1,13,1,{"$f":"Лист3!R22","v":2.5},{"$f":"Лист2!R4","v":4},"ааа",{"$f":"ProcessByFontColor(T3:T80,X3, \"COUNT\")","v":46},"ааа",{"$f":"ProcessByFontColor(U3:U80,Z3, \"COUNT\")","v":33},"ааа",{"$f":"ProcessByFontColor(S3:S80,AB3, \"COUNT\")","v":33}]
[{"$f":"A3+1.5","v":-4.5},{"$f":"B3+1.5","v":-3.5},{"$f":"C3+1.5","v":-2.5},{"$f":"D3+1.5","v":-1.5},{"$f":"E3+1.5","v":-0.5},{"$f":"F3+1.5","v":0.5},1.5,{"$f":"H3+1.5","v":2.5},{"$f":"I3+1.5","v":3.5},{"$f":"J3+1.5","v":4.5},{"$f":"K3+1.5","v":5.5},{"$f":"L3+1.5","v":6.5},{"$f":"M3+1.5","v":7.5},{"$f":"N3+1.5","v":8.5},{"$f":"O3+1.5","v":9.5},{"$f":"P3+1.5","v":10.5},{"$f":"Q3+1.5","v":11.5},{"$f":"R3+1.5","v":12.5},{"$f":"S3+1.5","v":2.5},{"$f":"T3+1.5","v":14.5},{"$f":"U3+1.5","v":2.5},{"$f":"Лист3!R23","v":2.5},{"$f":"Лист2!R5","v":4},"ббб",{"$f":"ProcessByFontColor(T3:T80,X4, \"COUNT\")","v":5},"ббб",{"$f":"ProcessByFontColor(U3:U80,Z4, \"COUNT\")","v":14},"ббб",{"$f":"ProcessByFontColor(S4:S81,AB4, \"COUNT\")","v":14}]
[-3,-2,-1,0,1,2,3,4,5,6,7,8,9,10,11,12,13,14,{"$f":"S4+1.5","v":4},16,4,{"$f":"Лист3!R24","v":2.5},{"$f":"Лист2!R6","v":4},"ввв",{"$f":"ProcessByFontColor(T3:T80,X5, \"COUNT\")","v":2},"ввв",{"$f":"ProcessByFontColor(U3:U80,Z5, \"COUNT\")","v":7},"ввв",5]
[-1.5,-0.5,0.5,1.5,2.5,3.5,4.5,5.5,6.5,7.5,8.5,9.5,10.5,11.5,12.5,13.5,14.5,15.5,5.5,17.5,5.5,{"$f":"Лист3!R25","v":2.5},{"$f":"Лист2!R7","v":4},"ссс",{"$f":"ProcessByFontColor(T3:T80,X6, \"COUNT\")","v":25},"ссс",{"$f":"ProcessByFontColor(U3:U80,Z6, \"COUNT\")","v":23},"ссс",22]
[0,1,2,3,4,5,6,7,8,9,10,11,12,13,14,15,16,17,7,19,7,{"$f":"Лист3!R26","v":2.5},{"$f":"Лист2!R8","v":4}]
[1.5,2.5,3.5,4.5,5.5,6.5,7.5,8.5,9.5,10.5,11.5,12.5,13.5,14.5,15.5,16.5,17.5,18.5,8.5,20.5,8.5,{"$f":"Лист3!R27","v":2.5},{"$f":"Лист2!R9","v":4}]
[3,4,5,6,7,8,9,10,11,12,13,14,15,16,17,18,19,20,10,22,10,{"$f":"Лист3!R28","v":2.5},{"$f":"Лист2!R10","v":4}]
[4.5,5.5,6.5,7.5,8.5,9.5,10.5,11.5,12.5,13.5,14.5,15.5,16.5,17.5,18.5,19.5,20.5,21.5,11.5,23.5,11.5,{"$f":"Лист3!R29","v":2.5},{"$f":"Лист2!R11","v":4}]
[6,7,8,9,10,11,12,13,14,15,16,17,18,19,20,21,22,23,13,25,13,{"$f":"Лист3!R30","v":2.5},{"$f":"Лист2!R12","v":4}]
[7.5,8.5,9.5,10.5,11.5,12.5,13.5,14.5,15.5,16.5,17.5,18.5,19.5,20.5,21.5,22.5,23.5,24.5,14.5,26.5,14.5,{"$f":"Лист3!R31","v":2.5},{"$f":"Лист2!R13","v":4}]
[9,10,11,12,13,14,15,16,17,18,19,20,21,22,23,24,25,26,16,28,16,{"$f":"Лист3!R32","v":2.5},{"$f":"Лист2!R14","v":4}]
[10.5,11.5,12.5,13.5,14.5,15.5,16.5,17.5,18.5,19.5,20.5,21.5,22.5,23.5,24.5,25.5,26.5,27.5,17.5,29.5,17.5,{"$f":"Лист3!R33","v":2.5},{"$f":"Лист2!R15","v":4}]
[12,13,14,15,16,17,18,19,20,21,22,23,24,25,26,27,28,29,19,31,19,{"$f":"Лист3!R34","v":2.5},{"$f":"Лист2!R16","v":4}]
[13.5,14.5,15.5,16.5,17.5,18.5,19.5,20.5,21.5,22.5,23.5,24.5,25.5,26.5,27.5,28.5,29.5,30.5,20.5,32.5,20.5,{"$f":"Лист3!R35","v":2.5},{"$f":"Лист2!R17","v":4}]
[15,16,17,18,19,20,21,22,23,24,25,26,27,28,29,30,31,32,22,34,22,{"$f":"Лист3!R36","v":2.5},{"$f":"Лист2!R18","v":4}]
[16.5,17.5,18.5,19.5,20.5,21.5,22.5,23.5,24.5,25.5,26.5,27.5,28.5,29.5,30.5,31.5,32.5,33.5,23.5,35.5,23.5,{"$f":"Лист3!R37","v":2.5},{"$f":"Лист2!R19","v":4}]
[18,19,20,21,22,23,24,25,26,27,28,29,30,31,32,33,34,35,25,37,25,{"$f":"Лист3!R38","v":2.5},{"$f":"Лист2!R20","v":4}]
[19.5,20.5,21.5,22.5,23.5,{"$f":"F19+1.5","v":24.5},{"$f":"G19+1.5","v":25.5},26.5,27.5,28.5,29.5,30.5,31.5,32.5,33.5,34.5,35.5,36.5,26.5,38.5,26.5,{"$f":"Лист3!R39","v":2.5},{"$f":"Лист2!R21","v":4}]
[21,22,23,24,25,26,27,28,29,30,31,32,33,34,35,36,37,38,28,40,28,{"$f":"Лист3!R40","v":2.5},{"$f":"Лист2!R22","v":4}]
[22.5,23.5,24.5,25.5,26.5,27.5,28.5,29.5,30.5,31.5,32.5,33.5,34.5,35.5,36.5,37.5,38.5,39.5,29.5,41.5,29.5,{"$f":"Лист3!R41","v":2.5},{"$f":"Лист2!R23","v":4}]
[24,25,26,27,28,29,30,31,32,33,34,35,36,37,38,39,40,41,31,43,31,{"$f":"Лист3!R42","v":2.5},{"$f":"Лист2!R24","v":4}]
[25.5,26.5,27.5,28.5,29.5,30.5,31.5,32.5,33.5,34.5,35.5,36.5,37.5,38.5,39.5,40.5,41.5,42.5,{"$f":"S23+1.5","v":32.5},{"$f":"T23+1.5","v":44.5},{"$f":"U23+1.5","v":32.5},{"$f":"Лист3!R43","v":2.5},{"$f":"Лист2!R25","v":4}]
[27,28,29,30,31,32,33,34,35,36,37,38,39,40,41,42,43,44,34,46,34,{"$f":"Лист3!R44","v":2.5},{"$f":"Лист2!R26","v":4}]
[null,null,null,null,null,{"$f":"F25+1.5","v":33.5},{"$f":"G25+1.5","v":34.5},{"$f":"H25+1.5","v":35.5},{"$f":"I25+1.5","v":36.5},{"$f":"J25+1.5","v":37.5},{"$f":"K25+1.5","v":38.5},{"$f":"L25+1.5","v":39.5},{"$f":"M25+1.5","v":40.5},{"$f":"N25+1.5","v":41.5},{"$f":"O25+1.5","v":42.5},{"$f":"P25+1.5","v":43.5},{"$f":"Q25+1.5","v":44.5},{"$f":"R25+1.5","v":45.5},35.5,47.5,35.5]
[null,null,null,null,null,35,36,37,38,39,40,41,42,43,44,45,46,47,37,49,37]
[null,null,null,null,null,36.5,37.5,38.5,39.5,40.5,41.5,42.5,43.5,44.5,45.5,46.5,47.5,48.5,38.5,50.5,38.5]
[null,null,null,null,null,38,39,40,41,42,43,44,45,46,47,48,49,50,40,52,40]
[null,null,null,null,null,39.5,40.5,41.5,42.5,43.5,44.5,45.5,46.5,47.5,48.5,49.5,50.5,51.5,41.5,53.5,41.5]
[null,null,null,null,null,41,42,43,44,45,46,47,48,49,50,51,52,53,43,55,43]
[null,null,null,null,null,42.5,43.5,44.5,45.5,46.5,47.5,48.5,49.5,50.5,51.5,52.5,53.5,54.5,44.5,56.5,44.5]
[null,null,null,null,null,44,45,46,47,48,49,50,51,52,53,54,55,56,46,58,46]
[null,null,null,null,null,45.5,46.5,47.5,48.5,49.5,50.5,51.5,52.5,53.5,54.5,55.5,56.5,57.5,47.5,59.5,47.5]
[null,null,null,null,null,47,48,49,50,51,52,53,54,55,56,57,58,59,49,61,49]
[null,null,null,null,null,48.5,49.5,50.5,51.5,52.5,53.5,54.5,55.5,56.5,57.5,58.5,59.5,60.5,50.5,62.5,50.5]
[null,null,null,null,null,50,51,52,53,54,55,56,57,58,59,60,61,62,52,64,52]
[null,null,null,null,null,51.5,52.5,53.5,54.5,55.5,56.5,57.5,58.5,59.5,60.5,61.5,62.5,63.5,53.5,65.5,53.5]
[null,null,null,null,null,53,54,55,56,57,58,59,60,61,62,63,64,65,55,67,55]
[null,null,null,null,null,54.5,55.5,56.5,57.5,58.5,59.5,60.5,61.5,62.5,63.5,64.5,65.5,66.5,56.5,68.5,56.5]
[null,null,null,null,null,56,57,58,59,60,61,62,63,64,65,66,67,68,58,70,58]
[null,null,null,null,null,57.5,58.5,59.5,60.5,61.5,62.5,63.5,64.5,65.5,66.5,67.5,68.5,69.5,59.5,71.5,59.5]
[null,null,null,null,null,59,60,61,62,63,64,65,66,67,68,69,70,71,61,73,61]
[null,null,null,null,null,60.5,61.5,62.5,63.5,64.5,65.5,66.5,67.5,68.5,69.5,70.5,71.5,72.5,62.5,74.5,62.5]
[null,null,null,null,null,62,63,64,65,66,67,68,69,70,71,72,73,74,64,76,64]
[null,null,null,null,null,63.5,64.5,65.5,66.5,67.5,68.5,69.5,70.5,71.5,72.5,73.5,74.5,75.5,65.5,77.5,65.5]
[null,null,null,null,null,65,66,67,68,69,70,71,72,73,74,75,76,77,67,79,67]
[null,null,null,null,null,66.5,67.5,68.5,69.5,70.5,71.5,72.5,73.5,74.5,75.5,76.5,77.5,78.5,68.5,80.5,68.5]
[null,null,null,null,null,68,69,70,71,72,73,74,75,76,77,78,79,80,70,82,70]
[null,null,null,null,null,69.5,70.5,71.5,72.5,73.5,74.5,75.5,76.5,77.5,78.5,79.5,80.5,81.5,71.5,83.5,71.5]
[null,null,null,null,null,71,72,73,74,75,76,77,78,79,80,81,82,83,73,85,73]
[null,null,null,null,null,72.5,73.5,74.5,75.5,76.5,77.5,78.5,79.5,80.5,81.5,82.5,83.5,84.5,74.5,86.5,74.5]
[null,null,null,null,null,74,75,76,77,78,79,80,81,82,83,84,85,86,76,88,76]
[null,null,null,null,null,75.5,76.5,77.5,78.5,79.5,80.5,81.5,82.5,83.5,84.5,85.5,86.5,87.5,77.5,89.5,77.5]
[null,null,null,null,null,77,78,79,80,81,82,83,84,85,86,87,88,89,79,91,79]
[null,null,null,null,null,78.5,79.5,80.5,81.5,82.5,83.5,84.5,85.5,86.5,87.5,88.5,89.5,90.5,80.5,92.5,80.5]
[null,null,null,null,null,80,81,82,83,84,85,86,87,88,89,90,91,92,82,94,82]
[null,null,null,null,null,81.5,82.5,83.5,84.5,85.5,86.5,87.5,88.5,89.5,90.5,91.5,92.5,93.5,83.5,95.5,83.5]
[null,null,null,null,null,83,84,85,86,87,88,89,90,91,92,93,94,95,85,97,85]
[null,null,null,null,null,84.5,85.5,86.5,87.5,88.5,89.5,90.5,91.5,92.5,93.5,94.5,95.5,96.5,86.5,98.5,86.5]
[null,null,null,null,null,86,87,88,89,90,91,92,93,94,95,96,97,98,88,100,88]
[null,null,null,null,null,87.5,88.5,89.5,90.5,91.5,92.5,93.5,94.5,95.5,96.5,97.5,98.5,99.5,89.5,101.5,89.5]
[null,null,null,null,null,89,90,91,92,93,94,95,96,97,98,99,100,101,91,103,91]
[null,null,null,null,null,90.5,91.5,92.5,93.5,94.5,95.5,96.5,97.5,98.5,99.5,100.5,101.5,102.5,92.5,104.5,92.5]
[null,null,null,null,null,92,93,94,95,96,97,98,99,100,101,102,103,104,94,106,94]
[null,null,null,null,null,93.5,94.5,95.5,96.5,97.5,98.5,99.5,100.5,101.5,102.5,103.5,104.5,105.5,95.5,107.5,95.5]
[null,null,null,null,null,95,96,97,98,99,100,101,102,103,104,105,106,107,97,109,97]
[null,null,null,null,null,96.5,97.5,98.5,99.5,100.5,101.5,102.5,103.5,104.5,105.5,106.5,107.5,108.5,98.5,110.5,98.5]
[null,null,null,null,null,98,99,100,101,102,103,104,105,106,107,108,109,110,100,112,100]
[null,null,null,null,null,99.5,100.5,101.5,102.5,103.5,104.5,105.5,106.5,107.5,108.5,109.5,110.5,111.5,101.5,113.5,101.5]
[null,null,null,null,null,101,102,103,104,105,106,107,108,109,110,111,112,113,103,115,103]
[null,null,null,null,null,102.5,103.5,104.5,105.5,106.5,107.5,108.5,109.5,110.5,111.5,112.5,113.5,114.5,104.5,116.5,104.5]
[null,null,null,null,null,104,105,106,107,108,109,110,111,112,113,114,115,116,106,118,106]
[null,null,null,null,null,105.5,106.5,107.5,108.5,109.5,110.5,111.5,112.5,113.5,114.5,115.5,116.5,117.5,107.5,119.5,107.5]
[null,null,null,null,null,107,108,109,110,111,112,113,114,115,116,117,118,119,109,121,109]
[null,null,null,null,null,108.5,109.5,110.5,111.5,112.5,113.5,114.5,115.5,116.5,117.5,118.5,119.5,120.5,110.5,122.5,110.5]
[null,null,null,null,null,110,111,112,113,114,115,116,117,118,119,120,121,122,112,124,112]
[null,null,null,null,null,111.5,112.5,113.5,114.5,115.5,116.5,117.5,118.5,119.5,120.5,121.5,122.5,123.5,113.5,125.5,113.5]
[null,null,null,null,null,113,114,115,116,117,118,119,120,121,122,123,124,125,115,127,115]
[null,null,null,null,null,114.5,115.5,116.5,117.5,118.5,119.5,120.5,121.5,122.5,123.5,124.5,125.5,126.5,116.5,128.5,116.5]

{"sheet":"Лист2","index":2,"n_rows":241,"n_cols":18,"rows_kept":241,"cut":false,"hidden":false,"merged":[]}
[]
[]
[null,null,null,null,null,null,null,109,1,-50]
[null,null,null,null,null,null,null,2,{"$f":"I3+1","v":2},{"$f":"J3+0.5","v":-49.5},null,null,null,null,null,null,null,{"$f":"$D$13","v":4}]
[null,null,null,null,null,null,null,3,{"$f":"I4+1","v":3},{"$f":"J4+0.5","v":-49},null,null,null,null,null,null,null,{"$f":"$D$13","v":4}]
[null,null,null,null,null,null,null,4,4,-48.5,null,null,null,null,null,null,null,4]
[null,null,null,null,null,null,null,5,5,-48,null,null,null,null,null,null,null,4]
[null,null,null,null,null,null,null,6,6,-47.5,null,null,null,null,null,null,null,4]
[null,null,null,null,null,null,null,null,7,-47,null,null,null,null,null,null,null,4]
[null,null,null,null,null,null,null,null,8,-46.5,null,null,null,null,null,null,null,4]
[null,null,null,null,null,null,null,null,9,-46,null,null,null,null,null,null,null,4]
[null,null,null,null,null,null,null,null,10,-45.5,null,null,null,null,null,null,null,4]
[null,null,null,{"$f":"IFERROR(VLOOKUP(H3,$I$3:$J341,2,FALSE),\"\")","v":4},null,null,null,null,{"$f":"I12+1","v":11},-45,null,null,null,null,null,null,null,4]
[null,null,null,null,null,null,null,null,{"$f":"I13+1","v":12},-44.5,null,null,null,null,null,null,null,4]
[null,null,null,null,null,null,null,null,13,-44,null,null,null,null,null,null,null,4]
[null,null,null,null,null,null,null,null,14,-43.5,null,null,null,null,null,null,null,4]
[null,null,null,null,null,null,null,null,15,-43,null,null,null,null,null,null,null,4]
[null,null,null,null,null,null,null,null,16,-42.5,null,null,null,null,null,null,null,4]
[null,null,null,null,null,null,null,null,17,-42,null,null,null,null,null,null,null,4]
[null,null,null,null,null,null,null,null,18,-41.5,null,null,null,null,null,null,null,4]
[null,null,null,null,null,null,null,158,19,-41,null,null,null,null,null,null,null,4]
[null,null,null,null,null,null,null,null,20,-40.5,null,null,null,null,null,null,null,4]
[null,null,null,null,null,null,null,null,21,-40,null,null,null,null,null,null,null,4]
[null,null,null,null,null,null,null,null,22,-39.5,null,null,null,null,null,null,null,4]
[null,null,null,null,null,null,null,null,23,-39,null,null,null,null,null,null,null,4]
[null,null,null,null,null,null,null,null,24,-38.5,null,null,null,null,null,null,null,4]
[null,null,null,null,null,null,null,null,25,-38,null,null,null,null,null,null,null,4]
[null,null,null,null,null,null,null,null,26,-37.5]
[null,null,null,null,null,null,null,null,27,{"$f":"J28+0.5","v":-37}]
[null,null,null,null,null,null,null,null,28,-36.5]
[null,null,null,null,null,null,null,null,29,-36]
[null,null,null,null,null,null,null,null,30,-35.5]
[null,null,null,null,null,null,null,null,31,-35]
[null,null,null,null,null,null,null,null,32,-34.5]
[null,null,null,null,null,null,null,null,33,-34]
[null,null,null,null,null,null,null,null,34,-33.5]
[null,null,null,null,null,null,null,null,35,-33]
[null,null,null,null,null,null,null,null,36,-32.5]
[null,null,null,null,null,null,null,null,37,-32]
[null,null,null,null,null,null,null,null,38,-31.5]
[null,null,null,null,null,null,null,null,39,-31]
[null,null,null,null,null,null,null,null,40,-30.5]
[null,null,null,null,null,null,null,null,41,-30]
[null,null,null,null,null,null,null,null,42,{"$f":"J43+0.5","v":-29.5}]
[null,null,null,null,null,null,null,null,43,-29]
[null,null,null,null,null,null,null,null,44,-28.5]
[null,null,null,null,null,null,null,null,45,-28]
[null,null,null,null,null,null,null,null,46,-27.5]
[null,null,null,null,null,null,null,null,47,-27]
[null,null,null,null,null,null,null,null,48,-26.5]
[null,null,null,null,null,null,null,null,49,-26]
[null,null,null,null,null,null,null,null,50,{"$f":"J51+0.5","v":-25.5}]
[null,null,null,null,null,null,null,null,51,-25]
[null,null,null,null,null,null,null,null,52,-24.5]
[null,null,null,null,null,null,null,null,53,-24]
[null,null,null,null,null,null,null,null,54,-23.5]
[null,null,null,null,null,null,null,null,55,-23]
[null,null,null,null,null,null,null,null,56,{"$f":"J57+0.5","v":-22.5}]
[null,null,null,null,null,null,null,null,57,-22]
[null,null,null,null,null,null,null,null,58,-21.5]
[null,null,null,null,null,null,null,null,59,-21]
[null,null,null,null,null,null,null,null,60,-20.5]
[null,null,null,null,null,null,null,null,61,-20]
[null,null,null,null,null,null,null,null,62,-19.5]
[null,null,null,null,null,null,null,null,63,-19]
[null,null,null,null,null,null,null,null,64,-18.5]
[null,null,null,null,null,null,null,null,65,-18]
[null,null,null,null,null,null,null,null,66,-17.5]
[null,null,null,null,null,null,null,null,{"$f":"I68+1","v":67},{"$f":"J68+0.5","v":-17}]
[null,null,null,null,null,null,null,null,68,-16.5]
[null,null,null,null,null,null,null,null,69,-16]
[null,null,null,null,null,null,null,null,70,-15.5]
[null,null,null,null,null,null,null,null,71,-15]
[null,null,null,null,null,null,null,null,72,-14.5]
[null,null,null,null,null,null,null,null,73,-14]
[null,null,null,null,null,null,null,null,74,-13.5]
[null,null,null,null,null,null,null,null,75,-13]
[null,null,null,null,null,null,null,null,76,-12.5]
[null,null,null,null,null,null,null,null,77,-12]
[null,null,null,null,null,null,null,null,78,-11.5]
[null,null,null,null,null,null,null,null,79,-11]
[null,null,null,null,null,null,null,null,80,-10.5]
[null,null,null,null,null,null,null,null,81,{"$f":"J82+0.5","v":-10}]
[null,null,null,null,null,null,null,null,82,-9.5]
[null,null,null,null,null,null,null,null,83,-9]
[null,null,null,null,null,null,null,null,84,-8.5]
[null,null,null,null,null,null,null,null,85,-8]
[null,null,null,null,null,null,null,null,86,-7.5]
[null,null,null,null,null,null,null,null,87,-7]
[null,null,null,null,null,null,null,null,88,-6.5]
[null,null,null,null,null,null,null,null,89,-6]
[null,null,null,null,null,null,null,null,90,-5.5]
[null,null,null,null,null,null,null,null,91,-5]
[null,null,null,null,null,null,null,null,92,-4.5]
[null,null,null,null,null,null,null,null,93,-4]
[null,null,null,null,null,null,null,null,94,-3.5]
[null,null,null,null,null,null,null,null,95,-3]
[null,null,null,null,null,null,null,null,96,-2.5]
[null,null,null,null,null,null,null,null,97,-2]
[null,null,null,null,null,null,null,null,98,-1.5]
[null,null,null,null,null,null,null,null,99,-1]
[null,null,null,null,null,null,null,null,100,-0.5]
[null,null,null,null,null,null,null,null,101,0]
[null,null,null,null,null,null,null,null,102,0.5]
[null,null,null,null,null,null,null,null,103,1]
[null,null,null,null,null,null,null,null,104,1.5]
[null,null,null,null,null,null,null,null,105,2]
[null,null,null,null,null,null,null,null,106,2.5]
[null,null,null,null,null,null,null,null,107,3]
[null,null,null,null,null,null,null,null,108,3.5]
[null,null,null,null,null,null,null,null,109,4]
[null,null,null,null,null,null,null,null,110,4.5]
[null,null,null,null,null,null,null,null,111,5]
[null,null,null,null,null,null,null,null,112,5.5]
[null,null,null,null,null,null,null,null,113,6]
[null,null,null,null,null,null,null,null,114,6.5]
[null,null,null,null,null,null,null,null,115,7]
[null,null,null,null,null,null,null,null,116,7.5]
[null,null,null,null,null,null,null,null,117,8]
[null,null,null,null,null,null,null,null,118,8.5]
[null,null,null,null,null,null,null,null,119,9]
[null,null,null,null,null,null,null,null,120,9.5]
[null,null,null,null,null,null,null,null,121,10]
[null,null,null,null,null,null,null,null,122,10.5]
[null,null,null,null,null,null,null,null,123,11]
[null,null,null,null,null,null,null,null,124,11.5]
[null,null,null,null,null,null,null,null,125,12]
[null,null,null,null,null,null,null,null,126,12.5]
[null,null,null,null,null,null,null,null,127,13]
[null,null,null,null,null,null,null,null,128,13.5]
[null,null,null,null,null,null,null,null,129,14]
[null,null,null,null,null,null,null,null,130,14.5]
[null,null,null,null,null,null,null,null,{"$f":"I132+1","v":131},{"$f":"J132+0.5","v":15}]
[null,null,null,null,null,null,null,null,132,15.5]
[null,null,null,null,null,null,null,null,133,16]
[null,null,null,null,null,null,null,null,134,16.5]
[null,null,null,null,null,null,null,null,135,17]
[null,null,null,null,null,null,null,null,136,17.5]
[null,null,null,null,null,null,null,null,137,18]
[null,null,null,null,null,null,null,null,138,18.5]
[null,null,null,null,null,null,null,null,139,19]
[null,null,null,null,null,null,null,null,140,19.5]
[null,null,null,null,null,null,null,null,141,20]
[null,null,null,null,null,null,null,null,142,20.5]
[null,null,null,null,null,null,null,null,143,21]
[null,null,null,null,null,null,null,null,144,21.5]
[null,null,null,null,null,null,null,null,145,22]
[null,null,null,null,null,null,null,null,146,22.5]
[null,null,null,null,null,null,null,null,147,23]
[null,null,null,null,null,null,null,null,148,23.5]
[null,null,null,null,null,null,null,null,149,24]
[null,null,null,null,null,null,null,null,150,24.5]
[null,null,null,null,null,null,null,null,151,25]
[null,null,null,null,null,null,null,null,152,25.5]
[null,null,null,null,null,null,null,null,153,26]
[null,null,null,null,null,null,null,null,154,26.5]
[null,null,null,null,null,null,null,null,155,27]
[null,null,null,null,null,null,null,null,156,27.5]
[null,null,null,null,null,null,null,null,157,28]
[null,null,null,null,null,null,null,null,158,28.5]
[null,null,null,null,null,null,null,null,159,29]
[null,null,null,null,null,null,null,null,160,29.5]
[null,null,null,null,null,null,null,null,161,30]
[null,null,null,null,null,null,null,null,162,30.5]
[null,null,null,null,null,null,null,null,163,31]
[null,null,null,null,null,null,null,null,164,31.5]
[null,null,null,null,null,null,null,null,165,32]
[null,null,null,null,null,null,null,null,166,32.5]
[null,null,null,null,null,null,null,null,167,33]
[null,null,null,null,null,null,null,null,168,33.5]
[null,null,null,null,null,null,null,null,169,34]
[null,null,null,null,null,null,null,null,170,34.5]
[null,null,null,null,null,null,null,null,171,35]
[null,null,null,null,null,null,null,null,172,35.5]
[null,null,null,null,null,null,null,null,173,36]
[null,null,null,null,null,null,null,null,174,36.5]
[null,null,null,null,null,null,null,null,175,37]
[null,null,null,null,null,null,null,null,176,37.5]
[null,null,null,null,null,null,null,null,177,38]
[null,null,null,null,null,null,null,null,178,38.5]
[null,null,null,null,null,null,null,null,179,39]
[null,null,null,null,null,null,null,null,180,39.5]
[null,null,null,null,null,null,null,null,181,40]
[null,null,null,null,null,null,null,null,182,40.5]
[null,null,null,null,null,null,null,null,183,41]
[null,null,null,null,null,null,null,null,184,41.5]
[null,null,null,null,null,null,null,null,185,42]
[null,null,null,null,null,null,null,null,186,42.5]
[null,null,null,null,null,null,null,null,187,43]
[null,null,null,null,null,null,null,null,188,43.5]
[null,null,null,null,null,null,null,null,189,44]
[null,null,null,null,null,null,null,null,190,44.5]
[null,null,null,null,null,null,null,null,191,45]
[null,null,null,null,null,null,null,null,192,45.5]
[null,null,null,null,null,null,null,null,193,46]
[null,null,null,null,null,null,null,null,194,46.5]
[null,null,null,null,null,null,null,null,{"$f":"I196+1","v":195},{"$f":"J196+0.5","v":47}]
[null,null,null,null,null,null,null,null,196,47.5]
[null,null,null,null,null,null,null,null,197,48]
[null,null,null,null,null,null,null,null,198,48.5]
[null,null,null,null,null,null,null,null,199,49]
[null,null,null,null,null,null,null,null,200,49.5]
[null,null,null,null,null,null,null,null,201,50]
[null,null,null,null,null,null,null,null,202,50.5]
[null,null,null,null,null,null,null,null,203,51]
[null,null,null,null,null,null,null,null,204,51.5]
[null,null,null,null,null,null,null,null,205,52]
[null,null,null,null,null,null,null,null,206,52.5]
[null,null,null,null,null,null,null,null,207,53]
[null,null,null,null,null,null,null,null,208,53.5]
[null,null,null,null,null,null,null,null,209,54]
[null,null,null,null,null,null,null,null,210,54.5]
[null,null,null,null,null,null,null,null,211,55]
[null,null,null,null,null,null,null,null,212,55.5]
[null,null,null,null,null,null,null,null,213,56]
[null,null,null,null,null,null,null,null,214,56.5]
[null,null,null,null,null,null,null,null,215,57]
[null,null,null,null,null,null,null,null,216,57.5]
[null,null,null,null,null,null,null,null,217,58]
[null,null,null,null,null,null,null,null,218,58.5]
[null,null,null,null,null,null,null,null,219,59]
[null,null,null,null,null,null,null,null,220,59.5]
[null,null,null,null,null,null,null,null,221,60]
[null,null,null,null,null,null,null,null,222,60.5]
[null,null,null,null,null,null,null,null,223,61]
[null,null,null,null,null,null,null,null,224,61.5]
[null,null,null,null,null,null,null,null,225,62]
[null,null,null,null,null,null,null,null,226,62.5]
[null,null,null,null,null,null,null,null,227,63]
[null,null,null,null,null,null,null,null,228,63.5]
[null,null,null,null,null,null,null,null,229,64]
[null,null,null,null,null,null,null,null,230,64.5]
[null,null,null,null,null,null,null,null,231,65]
[null,null,null,null,null,null,null,null,232,65.5]
[null,null,null,null,null,null,null,null,233,66]
[null,null,null,null,null,null,null,null,234,66.5]
[null,null,null,null,null,null,null,null,235,67]
[null,null,null,null,null,null,null,null,236,67.5]
[null,null,null,null,null,null,null,null,237,68]
[null,null,null,null,null,null,null,null,238,68.5]
[null,null,null,null,null,null,null,null,239,93.5]

{"sheet":"Лист3","index":3,"n_rows":260,"n_cols":18,"rows_kept":260,"cut":false,"hidden":false,"merged":[]}
[]
[]
[]
[]
[]
[]
[]
[]
[]
[]
[]
[]
[]
[]
[]
[]
[]
[]
[]
[]
[null,null,null,null,null,null,null,106,1,-50]
[null,null,null,null,null,null,null,2,{"$f":"I21+1","v":2},{"$f":"J21+0.5","v":-49.5},null,null,null,null,null,null,null,{"$f":"$C$31","v":2.5}]
[null,null,null,null,null,null,null,3,{"$f":"I22+1","v":3},{"$f":"J22+0.5","v":-49},null,null,null,null,null,null,null,{"$f":"$C$31","v":2.5}]
[null,null,null,null,null,null,null,4,4,-48.5,null,null,null,null,null,null,null,2.5]
[null,null,null,null,null,null,null,5,5,-48,null,null,null,null,null,null,null,2.5]
[null,null,null,null,null,null,null,6,6,-47.5,null,null,null,null,null,null,null,2.5]
[null,null,null,null,null,null,null,null,7,-47,null,null,null,null,null,null,null,2.5]
[null,null,null,null,null,null,null,null,8,-46.5,null,null,null,null,null,null,null,2.5]
[null,null,null,null,null,null,null,null,9,-46,null,null,null,null,null,null,null,2.5]
[null,null,null,null,null,null,null,null,10,-45.5,null,null,null,null,null,null,null,2.5]
[null,null,{"$f":"IFERROR(VLOOKUP(H21,$I$21:$J359,2,FALSE),\"\")","v":2.5},null,null,null,null,null,11,-45,null,null,null,null,null,null,null,2.5]
[null,null,null,null,null,null,null,null,12,-44.5,null,null,null,null,null,null,null,2.5]
[null,null,null,null,null,null,null,null,13,-44,null,null,null,null,null,null,null,2.5]
[null,null,null,null,null,null,null,null,14,-43.5,null,null,null,null,null,null,null,2.5]
[null,null,null,null,null,null,null,null,15,-43,null,null,null,null,null,null,null,2.5]
[null,null,null,null,null,null,null,null,16,-42.5,null,null,null,null,null,null,null,2.5]
[null,null,null,null,null,null,null,null,17,-42,null,null,null,null,null,null,null,2.5]
[null,null,null,null,null,null,null,null,18,-41.5,null,null,null,null,null,null,null,2.5]
[null,null,null,null,null,null,null,null,19,-41,null,null,null,null,null,null,null,2.5]
[null,null,null,null,null,null,null,null,20,-40.5,null,null,null,null,null,null,null,2.5]
[null,null,null,null,null,null,null,null,21,-40,null,null,null,null,null,null,null,2.5]
[null,null,null,null,null,null,null,null,22,-39.5,null,null,null,null,null,null,null,2.5]
[null,null,null,null,null,null,null,null,23,-39,null,null,null,null,null,null,null,2.5]
[null,null,null,null,null,null,null,null,24,-38.5,null,null,null,null,null,null,null,2.5]
[null,null,null,null,null,null,null,null,25,-38,null,null,null,null,null,null,null,2.5]
[null,null,null,null,null,null,null,null,26,-37.5,null,null,null,null,null,null,null,2.5]
[null,null,null,null,null,null,null,null,27,-37,null,null,null,null,null,null,null,2.5]
[null,null,null,null,null,null,null,null,28,-36.5]
[null,null,null,null,null,null,null,null,29,-36]
[null,null,null,null,null,null,null,null,30,-35.5]
[null,null,null,null,null,null,null,null,31,-35]
[null,null,null,null,null,null,null,null,32,-34.5]
[null,null,null,null,null,null,null,null,33,-34]
[null,null,null,null,null,null,null,null,34,-33.5]
[null,null,null,null,null,null,null,null,35,-33]
[null,null,null,null,null,null,null,null,36,-32.5]
[null,null,null,null,null,null,null,null,37,-32]
[null,null,null,null,null,null,null,null,38,-31.5]
[null,null,null,null,null,null,null,null,39,-31]
[null,null,null,null,null,null,null,null,40,-30.5]
[null,null,null,null,null,null,null,null,41,-30]
[null,null,null,null,null,null,null,null,42,-29.5]
[null,null,null,null,null,null,null,null,43,-29]
[null,null,null,null,null,null,null,null,44,-28.5]
[null,null,null,null,null,null,null,null,45,-28]
[null,null,null,null,null,null,null,null,46,-27.5]
[null,null,null,null,null,null,null,null,47,-27]
[null,null,null,null,null,null,null,null,48,-26.5]
[null,null,null,null,null,null,null,null,49,-26]
[null,null,null,null,null,null,null,null,50,-25.5]
[null,null,null,null,null,null,null,null,51,-25]
[null,null,null,null,null,null,null,null,52,-24.5]
[null,null,null,null,null,null,null,null,53,-24]
[null,null,null,null,null,null,null,null,54,-23.5]
[null,null,null,null,null,null,null,null,55,-23]
[null,null,null,null,null,null,null,null,56,-22.5]
[null,null,null,null,null,null,null,null,57,-22]
[null,null,null,null,null,null,null,null,58,-21.5]
[null,null,null,null,null,null,null,null,59,-21]
[null,null,null,null,null,null,null,null,60,-20.5]
[null,null,null,null,null,null,null,null,61,-20]
[null,null,null,null,null,null,null,null,62,-19.5]
[null,null,null,null,null,null,null,null,63,-19]
[null,null,null,null,null,null,null,null,64,-18.5]
[null,null,null,null,null,null,null,null,65,-18]
[null,null,null,null,null,null,null,null,66,-17.5]
[null,null,null,null,null,null,null,null,{"$f":"I86+1","v":67},{"$f":"J86+0.5","v":-17}]
[null,null,null,null,null,null,null,null,68,-16.5]
[null,null,null,null,null,null,null,null,69,-16]
[null,null,null,null,null,null,null,null,70,-15.5]
[null,null,null,null,null,null,null,null,71,-15]
[null,null,null,null,null,null,null,null,72,-14.5]
[null,null,null,null,null,null,null,null,73,-14]
[null,null,null,null,null,null,null,null,74,-13.5]
[null,null,null,null,null,null,null,null,75,-13]
[null,null,null,null,null,null,null,null,76,-12.5]
[null,null,null,null,null,null,null,null,77,-12]
[null,null,null,null,null,null,null,null,78,-11.5]
[null,null,null,null,null,null,null,null,79,-11]
[null,null,null,null,null,null,null,null,80,-10.5]
[null,null,null,null,null,null,null,null,81,-10]
[null,null,null,null,null,null,null,null,82,-9.5]
[null,null,null,null,null,null,null,null,83,-9]
[null,null,null,null,null,null,null,null,84,-8.5]
[null,null,null,null,null,null,null,null,85,-8]
[null,null,null,null,null,null,null,null,86,-7.5]
[null,null,null,null,null,null,null,null,87,-7]
[null,null,null,null,null,null,null,null,88,-6.5]
[null,null,null,null,null,null,null,null,89,-6]
[null,null,null,null,null,null,null,null,90,-5.5]
[null,null,null,null,null,null,null,null,91,-5]
[null,null,null,null,null,null,null,null,92,-4.5]
[null,null,null,null,null,null,null,null,93,-4]
[null,null,null,null,null,null,null,null,94,-3.5]
[null,null,null,null,null,null,null,null,95,-3]
[null,null,null,null,null,null,null,null,96,-2.5]
[null,null,null,null,null,null,null,null,97,-2]
[null,null,null,null,null,null,null,null,98,-1.5]
[null,null,null,null,null,null,null,null,99,-1]
[null,null,null,null,null,null,null,null,100,-0.5]
[null,null,null,null,null,null,null,null,101,0]
[null,null,null,null,null,null,null,null,102,0.5]
[null,null,null,null,null,null,null,null,103,1]
[null,null,null,null,null,null,null,null,104,1.5]
[null,null,null,null,null,null,null,null,105,2]
[null,null,null,null,null,null,null,null,106,2.5]
[null,null,null,null,null,null,null,null,107,3]
[null,null,null,null,null,null,null,null,108,3.5]
[null,null,null,null,null,null,null,null,109,4]
[null,null,null,null,null,null,null,null,110,4.5]
[null,null,null,null,null,null,null,null,111,5]
[null,null,null,null,null,null,null,null,112,5.5]
[null,null,null,null,null,null,null,null,113,6]
[null,null,null,null,null,null,null,null,114,6.5]
[null,null,null,null,null,null,null,null,115,7]
[null,null,null,null,null,null,null,null,116,7.5]
[null,null,null,null,null,null,null,null,117,8]
[null,null,null,null,null,null,null,null,118,8.5]
[null,null,null,null,null,null,null,null,119,9]
[null,null,null,null,null,null,null,null,120,9.5]
[null,null,null,null,null,null,null,null,121,10]
[null,null,null,null,null,null,null,null,122,10.5]
[null,null,null,null,null,null,null,null,123,11]
[null,null,null,null,null,null,null,null,124,11.5]
[null,null,null,null,null,null,null,null,125,12]
[null,null,null,null,null,null,null,null,126,12.5]
[null,null,null,null,null,null,null,null,127,13]
[null,null,null,null,null,null,null,null,128,13.5]
[null,null,null,null,null,null,null,null,129,14]
[null,null,null,null,null,null,null,null,130,14.5]
[null,null,null,null,null,null,null,null,{"$f":"I150+1","v":131},{"$f":"J150+0.5","v":15}]
[null,null,null,null,null,null,null,null,132,15.5]
[null,null,null,null,null,null,null,null,133,16]
[null,null,null,null,null,null,null,null,134,16.5]
[null,null,null,null,null,null,null,null,135,17]
[null,null,null,null,null,null,null,null,136,17.5]
[null,null,null,null,null,null,null,null,137,18]
[null,null,null,null,null,null,null,null,138,18.5]
[null,null,null,null,null,null,null,null,139,19]
[null,null,null,null,null,null,null,null,140,19.5]
[null,null,null,null,null,null,null,null,141,20]
[null,null,null,null,null,null,null,null,142,20.5]
[null,null,null,null,null,null,null,null,143,21]
[null,null,null,null,null,null,null,null,144,21.5]
[null,null,null,null,null,null,null,null,145,22]
[null,null,null,null,null,null,null,null,146,22.5]
[null,null,null,null,null,null,null,null,147,23]
[null,null,null,null,null,null,null,null,148,23.5]
[null,null,null,null,null,null,null,null,149,24]
[null,null,null,null,null,null,null,null,150,24.5]
[null,null,null,null,null,null,null,null,151,25]
[null,null,null,null,null,null,null,null,152,25.5]
[null,null,null,null,null,null,null,null,153,26]
[null,null,null,null,null,null,null,null,154,26.5]
[null,null,null,null,null,null,null,null,155,27]
[null,null,null,null,null,null,null,null,156,27.5]
[null,null,null,null,null,null,null,null,157,28]
[null,null,null,null,null,null,null,null,158,28.5]
[null,null,null,null,null,null,null,null,159,29]
[null,null,null,null,null,null,null,null,160,29.5]
[null,null,null,null,null,null,null,null,161,30]
[null,null,null,null,null,null,null,null,162,30.5]
[null,null,null,null,null,null,null,null,163,31]
[null,null,null,null,null,null,null,null,164,31.5]
[null,null,null,null,null,null,null,null,165,32]
[null,null,null,null,null,null,null,null,166,32.5]
[null,null,null,null,null,null,null,null,167,33]
[null,null,null,null,null,null,null,null,168,33.5]
[null,null,null,null,null,null,null,null,169,34]
[null,null,null,null,null,null,null,null,170,34.5]
[null,null,null,null,null,null,null,null,171,35]
[null,null,null,null,null,null,null,null,172,35.5]
[null,null,null,null,null,null,null,null,173,36]
[null,null,null,null,null,null,null,null,174,36.5]
[null,null,null,null,null,null,null,null,175,37]
[null,null,null,null,null,null,null,null,176,37.5]
[null,null,null,null,null,null,null,null,177,38]
[null,null,null,null,null,null,null,null,178,38.5]
[null,null,null,null,null,null,null,null,179,39]
[null,null,null,null,null,null,null,null,180,39.5]
[null,null,null,null,null,null,null,null,181,40]
[null,null,null,null,null,null,null,null,182,40.5]
[null,null,null,null,null,null,null,null,183,41]
[null,null,null,null,null,null,null,null,184,41.5]
[null,null,null,null,null,null,null,null,185,42]
[null,null,null,null,null,null,null,null,186,42.5]
[null,null,null,null,null,null,null,null,187,43]
[null,null,null,null,null,null,null,null,188,43.5]
[null,null,null,null,null,null,null,null,189,44]
[null,null,null,null,null,null,null,null,190,44.5]
[null,null,null,null,null,null,null,null,191,45]
[null,null,null,null,null,null,null,null,192,45.5]
[null,null,null,null,null,null,null,null,193,46]
[null,null,null,null,null,null,null,null,194,46.5]
[null,null,null,null,null,null,null,null,{"$f":"I214+1","v":195},{"$f":"J214+0.5","v":47}]
[null,null,null,null,null,null,null,null,196,{"$f":"J215+0.5","v":47.5}]
[null,null,null,null,null,null,null,null,197,{"$f":"J216+0.5","v":48}]
[null,null,null,null,null,null,null,null,198,{"$f":"J217+0.5","v":48.5}]
[null,null,null,null,null,null,null,null,199,73.5]
[null,null,null,null,null,null,null,null,200,{"$f":"J219+1","v":74.5}]
[null,null,null,null,null,null,null,null,201,74.5]
[null,null,null,null,null,null,null,null,202,{"$f":"J221+1","v":75.5}]
[null,null,null,null,null,null,null,null,203,75.5]
[null,null,null,null,null,null,null,null,204,{"$f":"J223+1","v":76.5}]
[null,null,null,null,null,null,null,null,205,76.5]
[null,null,null,null,null,null,null,null,206,{"$f":"J225+1","v":77.5}]
[null,null,null,null,null,null,null,null,207,77.5]
[null,null,null,null,null,null,null,null,208,{"$f":"J227+1","v":78.5}]
[null,null,null,null,null,null,null,null,209,78.5]
[null,null,null,null,null,null,null,null,210,{"$f":"J229+1","v":79.5}]
[null,null,null,null,null,null,null,null,211,79.5]
[null,null,null,null,null,null,null,null,212,{"$f":"J231+1","v":80.5}]
[null,null,null,null,null,null,null,null,213,80.5]
[null,null,null,null,null,null,null,null,214,{"$f":"J233+1","v":81.5}]
[null,null,null,null,null,null,null,null,215,81.5]
[null,null,null,null,null,null,null,null,216,{"$f":"J235+1","v":82.5}]
[null,null,null,null,null,null,null,null,217,82.5]
[null,null,null,null,null,null,null,null,218,{"$f":"J237+1","v":83.5}]
[null,null,null,null,null,null,null,null,219,83.5]
[null,null,null,null,null,null,null,null,220,{"$f":"J239+1","v":84.5}]
[null,null,null,null,null,null,null,null,221,84.5]
[null,null,null,null,null,null,null,null,222,{"$f":"J241+1","v":85.5}]
[null,null,null,null,null,null,null,null,223,85.5]
[null,null,null,null,null,null,null,null,224,{"$f":"J243+1","v":86.5}]
[null,null,null,null,null,null,null,null,225,86.5]
[null,null,null,null,null,null,null,null,226,{"$f":"J245+1","v":87.5}]
[null,null,null,null,null,null,null,null,227,87.5]
[null,null,null,null,null,null,null,null,228,{"$f":"J247+1","v":88.5}]
[null,null,null,null,null,null,null,null,229,88.5]
[null,null,null,null,null,null,null,null,230,{"$f":"J249+1","v":89.5}]
[null,null,null,null,null,null,null,null,231,89.5]
[null,null,null,null,null,null,null,null,232,{"$f":"J251+1","v":90.5}]
[null,null,null,null,null,null,null,null,233,90.5]
[null,null,null,null,null,null,null,null,234,{"$f":"J253+1","v":91.5}]
[null,null,null,null,null,null,null,null,235,91.5]
[null,null,null,null,null,null,null,null,236,{"$f":"J255+1","v":92.5}]
[null,null,null,null,null,null,null,null,237,92.5]
[null,null,null,null,null,null,null,null,238,{"$f":"J257+1","v":93.5}]
[null,null,null,null,null,null,null,null,239,93.5]
[null,null,null,null,null,null,null,null,240]

{"sheet":"Лист4","index":4,"n_rows":260,"n_cols":18,"rows_kept":260,"cut":false,"hidden":false,"merged":[]}
[]
[]
[]
[]
[]
[]
[]
[]
[]
[]
[]
[]
[]
[]
[]
[]
[]
[]
[]
[]
[null,null,null,null,null,null,null,119,1,-50]
[null,null,null,null,null,null,null,2,{"$f":"I21+1","v":2},{"$f":"J21+0.5","v":-49.5},null,null,null,null,null,null,null,{"$f":"$C$31","v":9}]
[null,null,null,null,null,null,null,3,{"$f":"I22+1","v":3},{"$f":"J22+0.5","v":-49},null,null,null,null,null,null,null,{"$f":"$C$31","v":9}]
[null,null,null,null,null,null,null,4,4,-48.5,null,null,null,null,null,null,null,9]
[null,null,null,null,null,null,null,5,5,-48,null,null,null,null,null,null,null,9]
[null,null,null,null,null,null,null,6,6,-47.5,null,null,null,null,null,null,null,9]
[null,null,null,null,null,null,null,null,7,-47,null,null,null,null,null,null,null,9]
[null,null,null,null,null,null,null,null,8,-46.5,null,null,null,null,null,null,null,9]
[null,null,null,null,null,null,null,null,9,-46,null,null,null,null,null,null,null,9]
[null,null,null,null,null,null,null,null,10,-45.5,null,null,null,null,null,null,null,9]
[null,null,{"$f":"IFERROR(VLOOKUP(H21,$I$21:$J359,2,FALSE),\"\")","v":9},null,null,null,null,null,11,-45,null,null,null,null,null,null,null,9]
[null,null,null,null,null,null,null,null,12,-44.5,null,null,null,null,null,null,null,9]
[null,null,null,null,null,null,null,null,13,-44,null,null,null,null,null,null,null,9]
[null,null,null,null,null,null,null,null,14,-43.5,null,null,null,null,null,null,null,9]
[null,null,null,null,null,null,null,null,15,-43,null,null,null,null,null,null,null,9]
[null,null,null,null,null,null,null,null,16,-42.5,null,null,null,null,null,null,null,9]
[null,null,null,null,null,null,null,null,17,-42,null,null,null,null,null,null,null,9]
[null,null,null,null,null,null,null,null,18,-41.5,null,null,null,null,null,null,null,9]
[null,null,null,null,null,null,null,null,19,-41,null,null,null,null,null,null,null,9]
[null,null,null,null,null,null,null,null,20,-40.5,null,null,null,null,null,null,null,9]
[null,null,null,null,null,null,null,null,21,-40,null,null,null,null,null,null,null,9]
[null,null,null,null,null,null,null,null,22,-39.5,null,null,null,null,null,null,null,9]
[null,null,null,null,null,null,null,null,23,-39,null,null,null,null,null,null,null,9]
[null,null,null,null,null,null,null,null,24,-38.5]
[null,null,null,null,null,null,null,null,25,-38]
[null,null,null,null,null,null,null,null,26,-37.5]
[null,null,null,null,null,null,null,null,27,-37]
[null,null,null,null,null,null,null,null,28,-36.5]
[null,null,null,null,null,null,null,null,29,-36]
[null,null,null,null,null,null,null,null,30,-35.5]
[null,null,null,null,null,null,null,null,31,-35]
[null,null,null,null,null,null,null,null,32,-34.5]
[null,null,null,null,null,null,null,null,33,-34]
[null,null,null,null,null,null,null,null,34,-33.5]
[null,null,null,null,null,null,null,null,35,-33]
[null,null,null,null,null,null,null,null,36,-32.5]
[null,null,null,null,null,null,null,null,37,-32]
[null,null,null,null,null,null,null,null,38,-31.5]
[null,null,null,null,null,null,null,null,39,-31]
[null,null,null,null,null,null,null,null,40,-30.5]
[null,null,null,null,null,null,null,null,41,-30]
[null,null,null,null,null,null,null,null,42,-29.5]
[null,null,null,null,null,null,null,null,43,-29]
[null,null,null,null,null,null,null,null,44,-28.5]
[null,null,null,null,null,null,null,null,45,-28]
[null,null,null,null,null,null,null,null,46,-27.5]
[null,null,null,null,null,null,null,null,47,-27]
[null,null,null,null,null,null,null,null,48,-26.5]
[null,null,null,null,null,null,null,null,49,-26]
[null,null,null,null,null,null,null,null,50,-25.5]
[null,null,null,null,null,null,null,null,51,-25]
[null,null,null,null,null,null,null,null,52,-24.5]
[null,null,null,null,null,null,null,null,53,-24]
[null,null,null,null,null,null,null,null,54,-23.5]
[null,null,null,null,null,null,null,null,55,-23]
[null,null,null,null,null,null,null,null,56,-22.5]
[null,null,null,null,null,null,null,null,57,-22]
[null,null,null,null,null,null,null,null,58,-21.5]
[null,null,null,null,null,null,null,null,59,-21]
[null,null,null,null,null,null,null,null,60,-20.5]
[null,null,null,null,null,null,null,null,61,-20]
[null,null,null,null,null,null,null,null,62,-19.5]
[null,null,null,null,null,null,null,null,63,-19]
[null,null,null,null,null,null,null,null,64,-18.5]
[null,null,null,null,null,null,null,null,65,-18]
[null,null,null,null,null,null,null,null,66,-17.5]
[null,null,null,null,null,null,null,null,{"$f":"I86+1","v":67},{"$f":"J86+0.5","v":-17}]
[null,null,null,null,null,null,null,null,68,-16.5]
[null,null,null,null,null,null,null,null,69,-16]
[null,null,null,null,null,null,null,null,70,-15.5]
[null,null,null,null,null,null,null,null,71,-15]
[null,null,null,null,null,null,null,null,72,-14.5]
[null,null,null,null,null,null,null,null,73,-14]
[null,null,null,null,null,null,null,null,74,-13.5]
[null,null,null,null,null,null,null,null,75,-13]
[null,null,null,null,null,null,null,null,76,-12.5]
[null,null,null,null,null,null,null,null,77,-12]
[null,null,null,null,null,null,null,null,78,-11.5]
[null,null,null,null,null,null,null,null,79,-11]
[null,null,null,null,null,null,null,null,80,-10.5]
[null,null,null,null,null,null,null,null,81,-10]
[null,null,null,null,null,null,null,null,82,-9.5]
[null,null,null,null,null,null,null,null,83,-9]
[null,null,null,null,null,null,null,null,84,-8.5]
[null,null,null,null,null,null,null,null,85,-8]
[null,null,null,null,null,null,null,null,86,-7.5]
[null,null,null,null,null,null,null,null,87,-7]
[null,null,null,null,null,null,null,null,88,-6.5]
[null,null,null,null,null,null,null,null,89,-6]
[null,null,null,null,null,null,null,null,90,-5.5]
[null,null,null,null,null,null,null,null,91,-5]
[null,null,null,null,null,null,null,null,92,-4.5]
[null,null,null,null,null,null,null,null,93,-4]
[null,null,null,null,null,null,null,null,94,-3.5]
[null,null,null,null,null,null,null,null,95,-3]
[null,null,null,null,null,null,null,null,96,-2.5]
[null,null,null,null,null,null,null,null,97,-2]
[null,null,null,null,null,null,null,null,98,-1.5]
[null,null,null,null,null,null,null,null,99,-1]
[null,null,null,null,null,null,null,null,100,-0.5]
[null,null,null,null,null,null,null,null,101,0]
[null,null,null,null,null,null,null,null,102,0.5]
[null,null,null,null,null,null,null,null,103,1]
[null,null,null,null,null,null,null,null,104,1.5]
[null,null,null,null,null,null,null,null,105,2]
[null,null,null,null,null,null,null,null,106,2.5]
[null,null,null,null,null,null,null,null,107,3]
[null,null,null,null,null,null,null,null,108,3.5]
[null,null,null,null,null,null,null,null,109,4]
[null,null,null,null,null,null,null,null,110,4.5]
[null,null,null,null,null,null,null,null,111,5]
[null,null,null,null,null,null,null,null,112,5.5]
[null,null,null,null,null,null,null,null,113,6]
[null,null,null,null,null,null,null,null,114,6.5]
[null,null,null,null,null,null,null,null,115,7]
[null,null,null,null,null,null,null,null,116,7.5]
[null,null,null,null,null,null,null,null,117,8]
[null,null,null,null,null,null,null,null,118,8.5]
[null,null,null,null,null,null,null,null,119,9]
[null,null,null,null,null,null,null,null,120,9.5]
[null,null,null,null,null,null,null,null,121,10]
[null,null,null,null,null,null,null,null,122,10.5]
[null,null,null,null,null,null,null,null,123,11]
[null,null,null,null,null,null,null,null,124,11.5]
[null,null,null,null,null,null,null,null,125,12]
[null,null,null,null,null,null,null,null,126,12.5]
[null,null,null,null,null,null,null,null,127,13]
[null,null,null,null,null,null,null,null,128,13.5]
[null,null,null,null,null,null,null,null,129,14]
[null,null,null,null,null,null,null,null,130,14.5]
[null,null,null,null,null,null,null,null,{"$f":"I150+1","v":131},{"$f":"J150+0.5","v":15}]
[null,null,null,null,null,null,null,null,132,15.5]
[null,null,null,null,null,null,null,null,133,16]
[null,null,null,null,null,null,null,null,134,16.5]
[null,null,null,null,null,null,null,null,135,17]
[null,null,null,null,null,null,null,null,136,17.5]
[null,null,null,null,null,null,null,null,137,18]
[null,null,null,null,null,null,null,null,138,18.5]
[null,null,null,null,null,null,null,null,139,19]
[null,null,null,null,null,null,null,null,140,19.5]
[null,null,null,null,null,null,null,null,141,20]
[null,null,null,null,null,null,null,null,142,20.5]
[null,null,null,null,null,null,null,null,143,21]
[null,null,null,null,null,null,null,null,144,21.5]
[null,null,null,null,null,null,null,null,145,22]
[null,null,null,null,null,null,null,null,146,22.5]
[null,null,null,null,null,null,null,null,147,23]
[null,null,null,null,null,null,null,null,148,23.5]
[null,null,null,null,null,null,null,null,149,24]
[null,null,null,null,null,null,null,null,150,24.5]
[null,null,null,null,null,null,null,null,151,25]
[null,null,null,null,null,null,null,null,152,25.5]
[null,null,null,null,null,null,null,null,153,26]
[null,null,null,null,null,null,null,null,154,26.5]
[null,null,null,null,null,null,null,null,155,27]
[null,null,null,null,null,null,null,null,156,27.5]
[null,null,null,null,null,null,null,null,157,28]
[null,null,null,null,null,null,null,null,158,28.5]
[null,null,null,null,null,null,null,null,159,29]
[null,null,null,null,null,null,null,null,160,29.5]
[null,null,null,null,null,null,null,null,161,30]
[null,null,null,null,null,null,null,null,162,30.5]
[null,null,null,null,null,null,null,null,163,31]
[null,null,null,null,null,null,null,null,164,31.5]
[null,null,null,null,null,null,null,null,165,32]
[null,null,null,null,null,null,null,null,166,32.5]
[null,null,null,null,null,null,null,null,167,33]
[null,null,null,null,null,null,null,null,168,33.5]
[null,null,null,null,null,null,null,null,169,34]
[null,null,null,null,null,null,null,null,170,34.5]
[null,null,null,null,null,null,null,null,171,35]
[null,null,null,null,null,null,null,null,172,35.5]
[null,null,null,null,null,null,null,null,173,36]
[null,null,null,null,null,null,null,null,174,36.5]
[null,null,null,null,null,null,null,null,175,37]
[null,null,null,null,null,null,null,null,176,37.5]
[null,null,null,null,null,null,null,null,177,38]
[null,null,null,null,null,null,null,null,178,38.5]
[null,null,null,null,null,null,null,null,179,39]
[null,null,null,null,null,null,null,null,180,39.5]
[null,null,null,null,null,null,null,null,181,40]
[null,null,null,null,null,null,null,null,182,40.5]
[null,null,null,null,null,null,null,null,183,41]
[null,null,null,null,null,null,null,null,184,41.5]
[null,null,null,null,null,null,null,null,185,42]
[null,null,null,null,null,null,null,null,186,42.5]
[null,null,null,null,null,null,null,null,187,43]
[null,null,null,null,null,null,null,null,188,43.5]
[null,null,null,null,null,null,null,null,189,44]
[null,null,null,null,null,null,null,null,190,44.5]
[null,null,null,null,null,null,null,null,191,45]
[null,null,null,null,null,null,null,null,192,45.5]
[null,null,null,null,null,null,null,null,193,46]
[null,null,null,null,null,null,null,null,194,46.5]
[null,null,null,null,null,null,null,null,{"$f":"I214+1","v":195},{"$f":"J214+0.5","v":47}]
[null,null,null,null,null,null,null,null,196,{"$f":"J215+0.5","v":47.5}]
[null,null,null,null,null,null,null,null,197,{"$f":"J216+0.5","v":48}]
[null,null,null,null,null,null,null,null,198,{"$f":"J217+0.5","v":48.5}]
[null,null,null,null,null,null,null,null,199,73.5]
[null,null,null,null,null,null,null,null,200,{"$f":"J219+1","v":74.5}]
[null,null,null,null,null,null,null,null,201,74.5]
[null,null,null,null,null,null,null,null,202,{"$f":"J221+1","v":75.5}]
[null,null,null,null,null,null,null,null,203,75.5]
[null,null,null,null,null,null,null,null,204,{"$f":"J223+1","v":76.5}]
[null,null,null,null,null,null,null,null,205,76.5]
[null,null,null,null,null,null,null,null,206,{"$f":"J225+1","v":77.5}]
[null,null,null,null,null,null,null,null,207,77.5]
[null,null,null,null,null,null,null,null,208,{"$f":"J227+1","v":78.5}]
[null,null,null,null,null,null,null,null,209,78.5]
[null,null,null,null,null,null,null,null,210,{"$f":"J229+1","v":79.5}]
[null,null,null,null,null,null,null,null,211,79.5]
[null,null,null,null,null,null,null,null,212,{"$f":"J231+1","v":80.5}]
[null,null,null,null,null,null,null,null,213,80.5]
[null,null,null,null,null,null,null,null,214,{"$f":"J233+1","v":81.5}]
[null,null,null,null,null,null,null,null,215,81.5]
[null,null,null,null,null,null,null,null,216,{"$f":"J235+1","v":82.5}]
[null,null,null,null,null,null,null,null,217,82.5]
[null,null,null,null,null,null,null,null,218,{"$f":"J237+1","v":83.5}]
[null,null,null,null,null,null,null,null,219,83.5]
[null,null,null,null,null,null,null,null,220,{"$f":"J239+1","v":84.5}]
[null,null,null,null,null,null,null,null,221,84.5]
[null,null,null,null,null,null,null,null,222,{"$f":"J241+1","v":85.5}]
[null,null,null,null,null,null,null,null,223,85.5]
[null,null,null,null,null,null,null,null,224,{"$f":"J243+1","v":86.5}]
[null,null,null,null,null,null,null,null,225,86.5]
[null,null,null,null,null,null,null,null,226,{"$f":"J245+1","v":87.5}]
[null,null,null,null,null,null,null,null,227,87.5]
[null,null,null,null,null,null,null,null,228,{"$f":"J247+1","v":88.5}]
[null,null,null,null,null,null,null,null,229,88.5]
[null,null,null,null,null,null,null,null,230,{"$f":"J249+1","v":89.5}]
[null,null,null,null,null,null,null,null,231,89.5]
[null,null,null,null,null,null,null,null,232,{"$f":"J251+1","v":90.5}]
[null,null,null,null,null,null,null,null,233,90.5]
[null,null,null,null,null,null,null,null,234,{"$f":"J253+1","v":91.5}]
[null,null,null,null,null,null,null,null,235,91.5]
[null,null,null,null,null,null,null,null,236,{"$f":"J255+1","v":92.5}]
[null,null,null,null,null,null,null,null,237,92.5]
[null,null,null,null,null,null,null,null,238,{"$f":"J257+1","v":93.5}]
[null,null,null,null,null,null,null,null,239,93.5]
[null,null,null,null,null,null,null,null,240]